Cogmind - Beta 17 @@@ ROGUE MODE // 2026.07.14 @ 22:11:52 Player: pinbox Result: Destroyed by H-88 Terminator with Heavy Machine Gun Performance ------------- Evolutions (8) 4000 Regions Visited (18) 3600 Robots Destroyed (72) 360 Value Destroyed (2894) 2894 Prototype IDs (41) 820 Alien Tech Used (7) 1400 Bonus (5844) 5844 TOTAL SCORE: 18918 Bonus ------- Follower Combat Kills 244 Registered with UFD 300 Met Optimus in HQ 500 Met Zhirov 300 Met Warlord at Base 500 MAIN.C Attacked Warlord 500 Used Core Reset Matrix 3000 Scanned by Researcher 500 Cogmind --------- Core Integrity 0/1450 Matter 300/300 Energy 24/100 System Corruption 5% Temperature Cool (27) Movement Hovering (46) Location -2/Testing Parts ------- > --- POWER (2) -------- (None) > --- PROPULSION (7) --- Cooled Antigrav System > --- UTILITY (12) ----- Advanced Signal Interpreter Surveybot 17 Chip Advanced Melee Analysis Suite Experimental Armor Integrity Analyzer > --- WEAPON (2) ------- Companion Sword > --- INVENTORY (5) ---- Advanced Sensor Array Experimental Phase Shifter Experimental Shock Absorption System Plasma Cutter Peak State ------------ > --- POWER ------------ Heavy Antimatter Reactor Graviton Reactor > --- PROPULSION ------- Cooled Gravmag System Cooled Gravmag System Cooled Gravmag System Cooled Gravmag System Cooled Gravmag System Cooled Antigrav System Cooled Antigrav System > --- UTILITY ---------- Large Storage Unit Long-range Sensor Array Advanced Signal Interpreter Surveybot 17 Chip Advanced Melee Analysis Suite Advanced Melee Analysis Suite Experimental Armor Integrity Analyzer Microactuators Improved Force Booster Improved Transmission Jammer Improved Reaction Control System Experimental Focal Shield > --- WEAPON ----------- Companion Sword > --- INVENTORY -------- Cooled Gravmag System Cooled Gravmag System Combat Linear Gravjet Advanced Power Amplifier Deep Structural Scanner Advanced Sensor Array Advanced Terrain Scanner Experimental Phase Shifter Experimental Weapon Shielding Phase Redirector Transdimensional Reconstructor Core Reset Matrix Heavy Rocket Launcher Plasma Cutter [Rating: 157] Favorites ----------- Power Light Nuclear Core Engine Light Ion Engine Power Core Light Nuclear Core Reactor Heavy Antimatter Reactor Propulsion Cooled Gravmag System Treads Light Treads Wheel Subdweller Monowheel Hover Unit Cooled Gravmag System Utility Advanced Melee Analysis Suite Device Improved Terrain Scanner Storage Large Storage Unit Processor Advanced Melee Analysis Suite Protection Makeshift Light Armor Plating Artifact Phase Redirector Weapon Companion Sword Energy Gun Medium Laser Energy Cannon Subdweller Beam Cannon Ballistic Gun Subdweller Machine Gun Launcher Subdweller Shrapnel Launcher Special Weapon Plasma Cutter Impact Weapon Maul Slashing Weapon Companion Sword Build | -11 -10 -10 -8 -8 -6 -5 -5 -5 -4 -4 -4 -4 -4 -3 -3 -3 -2 -2 ------- Run | Yrd Mat Sub Rec Scr Fac Fac Upp War Pro Fac Upp Upp Zhi Pro Res Qua Res Tes Slots Evolved 16 | . . . . . 8 2 . . . 2 . . . . 2 . 2 . Power 1 | . . . . . . . . . . 1 . . . . . . . . Propulsion 5 | . . . . . 2 . . . . 1 . . . . 1 . 1 . Utility 10 | . . . . . 6 2 . . . . . . . . 1 . 1 . Weapon . | . . . . . . . . . . . . . . . . . . . Parts Attached 126 | 7 4 27 2 7 10 7 3 10 1 7 . . 3 . 3 6 10 19 Power 16 | 1 . 6 1 2 . . . 1 . . . . 1 . 1 . . 3 Engine 8 | 1 . 6 . . . . . 1 . . . . . . . . . . Core 3 | . . . 1 2 . . . . . . . . . . . . . . Reactor 5 | . . . . . . . . . . . . . 1 . 1 . . 3 Propulsion 31 | 2 . 6 . 2 3 4 . 1 . . . . 1 . 1 . 4 7 Treads 5 | 2 . 1 . 2 . . . . . . . . . . . . . . Leg . | . . . . . . . . . . . . . . . . . . . Wheel 8 | . . 5 . . 3 . . . . . . . . . . . . . Hover 18 | . . . . . . 4 . 1 . . . . 1 . 1 . 4 7 Flight . | . . . . . . . . . . . . . . . . . . . Utility 59 | 2 3 4 1 1 7 3 3 6 . 7 . . 1 . 1 6 6 8 Device 37 | 1 . 2 1 1 2 1 2 4 . 5 . . 1 . 1 3 5 8 Storage 4 | 1 3 . . . . . . . . . . . . . . . . . Processor 11 | . . . . . 4 2 . 2 . 2 . . . . . 1 . . Hackware . | . . . . . . . . . . . . . . . . . . . Protection 5 | . . 2 . . 1 . 1 . . . . . . . . . 1 . Artifact 2 | . . . . . . . . . . . . . . . . 2 . . Weapon 20 | 2 1 11 . 2 . . . 2 1 . . . . . . . . 1 Energy Gun 3 | 2 . 1 . . . . . . . . . . . . . . . . Energy Cannon 4 | . . 4 . . . . . . . . . . . . . . . . Ballistic Gun 5 | . . 5 . . . . . . . . . . . . . . . . Ballistic Cannon . | . . . . . . . . . . . . . . . . . . . Launcher 3 | . 1 1 . . . . . . . . . . . . . . . 1 Special Weapon 3 | . . . . . . . . 2 1 . . . . . . . . . Impact Weapon 1 | . . . . 1 . . . . . . . . . . . . . . Slashing Weapon 1 | . . . . 1 . . . . . . . . . . . . . . Piercing Weapon . | . . . . . . . . . . . . . . . . . . . Special Melee Weapon . | . . . . . . . . . . . . . . . . . . . Unidentified Prototypes 31 | . . . . 1 . 1 1 8 2 1 . . 3 . 1 4 3 6 Parts Lost 55 | . . 14 . . 1 . 1 1 2 . . . . . 2 1 4 29 Power 10 | . . 4 . . 1 . 1 . . . . . . . . . . 4 Propulsion 20 | . . 5 . . . . . . . . . . . . . . 3 12 Utility 21 | . . 2 . . . . . 1 2 . . . . . 2 1 1 12 Weapon 4 | . . 3 . . . . . . . . . . . . . . . 1 Highest Loss Streak 18 | . . 3 . . 1 . 1 1 1 . . . . . 2 1 2 18 To Critical Strikes . | . . . . . . . . . . . . . . . . . . . Average Backups 13 | . 3 16 17 8 12 14 13 14 14 14 15 15 15 15 11 14 14 12 Power 1 | . 1 3 3 1 1 1 . . . . . . . . . 1 . . Propulsion 2 | . . 2 3 . 1 2 4 5 6 5 5 5 4 4 3 3 2 3 Utility 5 | . 1 3 3 4 6 7 6 6 6 7 8 8 8 8 4 7 7 4 Weapon 3 | . . 6 7 1 1 2 1 1 1 1 1 1 1 1 1 1 1 . Tool/Special . | . . . . . . . . . . . . . . . . . . . Unused Backups 19 | . . 2 . 8 1 4 . . . 1 . . . . . . 1 2 Power 1 | . . . . 1 . . . . . . . . . . . . . . Propulsion 6 | . . 1 . 2 . 1 . . . . . . . . . . . 2 Utility 5 | . . . . 1 1 2 . . . 1 . . . . . . . . Weapon 7 | . . 1 . 4 . 1 . . . . . . . . . . 1 . Tool/Special . | . . . . . . . . . . . . . . . . . . . Average Slot Usage (%) 91 | . 100 98 100 80 76 80 89 93 93 88 89 89 88 89 88 87 94 88 Engine 5 | . 14 13 1 . . . . 2 5 5 5 5 3 . . . . . Core 3 | . . . 12 13 5 4 4 2 . . . . . . . . . . Reactor 1 | . . . . . . . . . . . . . 1 5 4 4 7 6 Treads 5 | . 28 2 . 18 4 . . . . . . . . . . . . . Wheel 10 | . . 24 28 2 17 10 . . . . . . . . . . . . Hover 9 | . . . . . . 8 23 22 23 25 26 26 26 26 26 28 29 27 Device 14 | . 14 3 9 13 13 17 24 25 28 21 21 21 20 21 26 21 25 24 Storage 9 | . 14 14 14 13 6 5 5 5 5 5 5 5 5 5 4 4 4 3 Processor 9 | . . . . . 21 21 23 23 23 25 26 26 26 26 20 22 21 20 Protection 3 | . . 10 4 . . 2 1 1 . . . . . . . . . . Energy Gun 1 | . 27 . . . . . . . . . . . . . . . . . Energy Cannon 4 | . . 12 . . . . . . . . . . . . . . . . Ballistic Gun 5 | . . 12 14 4 . . . . . . . . . . . . . . Launcher 1 | . . 1 14 4 . . . . . . . . . . . . . . Impact Weapon 1 | . . . . 6 . . . . . . . . . . . . . . Slashing Weapon 2 | . . . . 2 6 5 5 5 5 5 5 5 5 5 4 4 4 4 Peak Build Rating 157 | 7 7 18 18 25 52 72 86 105 112 110 108 108 116 112 139 148 157 155 Average Rating 53 | 4 6 15 17 16 46 61 81 91 99 107 108 108 108 112 127 128 150 141 On Entrance 75 | . 7 7 15 18 23 50 72 81 100 99 108 108 108 112 112 132 132 155 Avg Prop Armor Cover (%) 5 | . . 4 5 5 21 5 5 7 . . . . . . 4 . . 16 Naked Turns 87 | . . . . 87 . . . . . . . . . . . . . . Heaviest Build 76 | 15 50 65 58 58 42 43 48 47 42 46 46 46 55 55 76 58 73 72 Greatest Support 108 | 40 40 40 20 40 40 44 49 46 67 57 83 57 57 83 75 84 82 108 Greatest Overweight (x) 19 | . 1 3 2 19 2 14 1 1 . . . . . . 1 . 1 2 Average Overweight (x) . | . . 1 2 . 1 . . . . . . . . . . . . . Largest Inventory Capacity 25 | 8 25 20 20 20 15 15 15 15 15 15 15 15 15 15 15 15 15 15 Average Capacity 16 | 6 18 20 20 15 15 15 15 15 15 15 15 15 15 15 15 15 15 14 Most Carried 20 | 1 5 20 19 19 15 15 15 15 15 15 15 15 15 15 14 15 15 15 Average Carried 13 | . 3 17 18 9 12 14 14 14 14 14 15 15 14 15 11 14 14 12 Final Capacity 20 | 8 20 20 20 15 15 15 15 15 15 15 15 15 15 15 15 15 15 5 Final Carried 19 | 1 5 17 19 15 14 15 14 15 14 15 15 15 15 15 11 15 15 4 Scrap Suit Usage (%) 5 | . . . . . 98 60 . . . . . . . . . . . . Class Distribution -------------------- 42% | Mutant 22% | Scavenger-Mutant 9% | Ninja 8% | Scout 5% | Commander-Mutant 3% | Infiltrator-Ninja Dominant Class ---------------- Mutant | -10/Materials Scavenger-Mutant | -10/Subcaves Mutant | -8/Recycling Mutant | -8/Scraptown Derelict-Mutant | -6/Factory Mutant | -5/Factory Ninja | -5/Upper Caves Commander-Mutant | -5/Warlord Mutant | -4/Proximity Caves Scout | -4/Factory Scout | -4/Upper Caves Scout | -4/Upper Caves Scout | -4/Zhirov Scout | -3/Proximity Caves Sprinter | -3/Research Scout | -3/Quarantine Ninja | -2/Research Infiltrator-Ninja | -2/Testing Resources | -11 -10 -10 -8 -8 -6 -5 -5 -5 -4 -4 -4 -4 -4 -3 -3 -3 -2 -2 ----------- Run | Yrd Mat Sub Rec Scr Fac Fac Upp War Pro Fac Upp Upp Zhi Pro Res Qua Res Tes Matter Collected 2412 | 211 48 553 . 160 125 100 73 223 20 . 117 . . . 67 176 200 339 Remotely . | . . . . . . . . . . . . . . . . . . . Salvage Created 3269 | 15 169 715 . . 267 101 122 . . 86 126 60 . 83 303 241 461 520 Parts 185 | 3 12 42 . . 15 2 10 . . 4 10 3 . 6 19 5 36 18 Haulers Intercepted 4 | . 1 . . . . 1 . . . . . . . . 1 . 1 . Recyclers Shooed . | . . . . . . . . . . . . . . . . . . . Parts Field Recycled . | . . . . . . . . . . . . . . . . . . . Retrieved Matter . | . . . . . . . . . . . . . . . . . . . Parts Self-Destructed 48 | . . 13 . . . . 10 . 16 . 3 . . 6 . . . . Prevented . | . . . . . . . . . . . . . . . . . . . Parts Restored . | . . . . . . . . . . . . . . . . . . . Kills | -11 -10 -10 -8 -8 -6 -5 -5 -5 -4 -4 -4 -4 -4 -3 -3 -3 -2 -2 ------- Run | Yrd Mat Sub Rec Scr Fac Fac Upp War Pro Fac Upp Upp Zhi Pro Res Qua Res Tes Combat Hostiles Destroyed 50 | . 5 17 . . 4 . 5 . . 1 1 . . 1 3 3 6 4 Melee 28 | . . . . . 4 . 5 . . 1 1 . . 1 3 3 6 4 Guns 11 | . 3 8 . . . . . . . . . . . . . . . . Cannons 9 | . . 9 . . . . . . . . . . . . . . . . AOE 2 | . 2 . . . . . . . . . . . . . . . . . Classes Destroyed 16 | 1 4 4 . . 1 . . . . . 1 . . . . . 1 4 Worker 1 | . . . . . . . . . . . . . . . . . . 1 Builder 4 | . . . . . . . . . . . . . . . . . 3 1 Tunneler 2 | 1 . . . . . . . . . . . . . . . . 1 . Hauler 4 | . 1 . . . . 1 . . . . . . . . 1 . 1 . Recycler 1 | . . . . . . . . . . . . . . . . . . 1 Turret 2 | . . 2 . . . . . . . . . . . . . . . . Watcher 7 | . 1 . . . 1 1 . . . . . . . . . . 2 2 Swarmer 15 | . 3 1 . . . . 5 . . . 1 . . . . . 5 . Grunt 9 | . 2 . . . 3 . . . . . . . . . 1 3 . . Researcher 1 | . . . . . . . . . . . . . . . . . . 1 Sentry 3 | . . 1 . . . . . . . 1 . . . 1 . . . . Hunter 1 | . . . . . . . . . . . . . . . . . . 1 Programmer 7 | . . . . . 1 . . . . . . . . . 2 . 1 3 Artisan 1 | . . 1 . . . . . . . . . . . . . . . . Subdweller 15 | . . 15 . . . . . . . . . . . . . . . . Samaritan 3 | . . . . . . . . . . . 2 1 . . . . . . Best Kill Streak 5 | 1 3 3 . . 2 1 5 . . 1 1 . . 1 2 3 5 3 Combat Bots Only 5 | . 2 2 . . 2 . 5 . . 1 1 . . 1 2 3 4 2 Max Kills in Single Turn 3 | 1 2 1 . . 1 1 1 . . 1 1 1 . 1 1 1 2 3 Gunslinging . | . . . . . . . . . . . . . . . . . . . Exploded 1 | . 1 . . . . . . . . . . . . . . . . . Melee 2 | . . . . . 1 . 1 . . 1 1 . . 1 1 1 2 1 Uniques/NPCs Destroyed . | . . . . . . . . . . . . . . . . . . . Combat | -11 -10 -10 -8 -8 -6 -5 -5 -5 -4 -4 -4 -4 -4 -3 -3 -3 -2 -2 -------- Run | Yrd Mat Sub Rec Scr Fac Fac Upp War Pro Fac Upp Upp Zhi Pro Res Qua Res Tes Hostile Shots Fired 669 | . 21 133 . . 35 2 47 4 16 2 24 . . 14 20 14 65 272 Missed 193 | . 6 39 . . 5 . 15 . 5 1 11 . . 9 11 5 30 56 Hits 476 | . 15 94 . . 30 2 32 4 11 1 13 . . 5 9 9 35 216 Projectile 476 | . 15 94 . . 30 2 32 4 11 1 13 . . 5 9 9 35 216 Critical Strikes 19 | . . 1 . . 3 . 1 1 . . . . . . 1 2 2 8 Part Disruptions 2 | . . . . . . . . . 1 . . . . . . . . 1 Damage Taken 8983 | . 160 1752 . . 626 40 509 163 183 30 197 . . 108 213 182 753 4067 Core 2092 | . 32 213 . . 75 . 52 95 64 5 78 . . . 30 67 126 1255 Absorbed by Shields 26 | . . . . . . . . 26 . . . . . . . . . . Redirected to Shielding 3 | . . 3 . . . . . . . . . . . . . . . . Ignored by Resistances 61 | . . . . . . . . . . . . . . . . . 61 . Regen/Repaired (Parts) 238 | . . . . . . . . 96 . . . . . . . . . 142 Core Remaining (%) 75 | 100 . . . 2 91 . . . 78 . . . . 92 . 92 . . Volleys Fired 135 | 2 13 119 . . . . . . . . . . . . . . . 1 Largest 2 | 2 2 2 . . . . . . . . . . . . . . . 1 Hottest 160 | 90 90 160 . . . . . . . . . . . . . . . 49 Shots Fired 241 | 4 26 210 . . . . . . . . . . . . . . . 1 Gun 131 | 4 23 104 . . . . . . . . . . . . . . . . Cannon 104 | . . 104 . . . . . . . . . . . . . . . . Launcher 6 | . 3 2 . . . . . . . . . . . . . . . 1 Special . | . . . . . . . . . . . . . . . . . . . Kinetic 88 | . . 88 . . . . . . . . . . . . . . . . Thermal 132 | 2 13 117 . . . . . . . . . . . . . . . . Explosive 4 | . 3 . . . . . . . . . . . . . . . . 1 Electromagnetic 17 | 2 10 5 . . . . . . . . . . . . . . . . Robot Hit Streak 11 | 2 3 11 . . . . . . . . . . . . . . . 3 Robot Miss Streak 3 | 1 3 3 . . . . . . . . . . . . . . . . Penetration Max . | . . . . . . . . . . . . . . . . . . . Secondary Targets 1 | . . 1 . . . . . . . . . . . . . . . . Max Gunslinging Chain 1 | . . 1 . . . . . . . . . . . . . . . . Shots Hit Robots 257 | 3 14 97 . . 17 9 10 . . 3 3 1 . 1 9 15 25 50 Core Hits 93 | 2 11 30 . . 7 2 3 . . 2 1 1 . 1 4 5 8 16 Critical Kills . | . . . . . . . . . . . . . . . . . . . Critical Parts Destroyed . | . . . . . . . . . . . . . . . . . . . Critical Strikes 12 | . 1 1 . . . . . . . . . . . . . . 2 8 Burn 1 | . 1 . . . . . . . . . . . . . . . . . Destroy 1 | . . 1 . . . . . . . . . . . . . . . . Melee Attacks 225 | . . . . . 28 14 17 . 2 5 5 2 . 1 15 23 53 60 Impact . | . . . . . . . . . . . . . . . . . . . Slashing 225 | . . . . . 28 14 17 . 2 5 5 2 . 1 15 23 53 60 Piercing . | . . . . . . . . . . . . . . . . . . . Sneak Attacks 23 | . . . . . . 2 . . . 1 2 1 . . 1 6 8 2 Combat Hostiles 1 | . . . . . . . . . . . . . . . . . . 1 Follow-up Attacks 4 | . . . . . . . . . . . . . . . . . 2 2 Damage Inflicted 11131 | 38 376 2098 . . 663 480 457 . . 244 222 86 . 76 613 1210 1756 2812 Guns 1100 | 38 149 913 . . . . . . . . . . . . . . . . Cannons 1185 | . . 1185 . . . . . . . . . . . . . . . . Explosions 544 | . 227 . . . . . . . . . . . . . . . . 317 Melee 8302 | . . . . . 663 480 457 . . 244 222 86 . 76 613 1210 1756 2495 Ramming . | . . . . . . . . . . . . . . . . . . . Kinetic 733 | . . 733 . . . . . . . . . . . . . . . . Thermal 1486 | 25 151 1310 . . . . . . . . . . . . . . . . Explosive 492 | . 175 . . . . . . . . . . . . . . . . 317 Electromagnetic 118 | 13 50 55 . . . . . . . . . . . . . . . . Impact . | . . . . . . . . . . . . . . . . . . . Slashing 8302 | . . . . . 663 480 457 . . 244 222 86 . 76 613 1210 1756 2495 Piercing . | . . . . . . . . . . . . . . . . . . . Highest Corruption 20 | . . . . . . 1 1 1 . 2 2 2 2 2 1 1 6 20 Average Corruption 4 | . . . . . . 1 1 1 . 2 2 2 2 2 1 1 5 9 Corruption Purged . | . . . . . . . . . . . . . . . . . . . Corruption Blocked . | . . . . . . . . . . . . . . . . . . . Effects 42 | . . . . . . . 2 . . 8 . . 3 . 2 1 1 25 Message Errors 7 | . . . . . . . . . . 2 . . . . . . . 5 Matter Fused 11 | . . . . . . . 1 . . 1 . . 1 . . 1 1 6 Heat Flow Errors 5 | . . . . . . . . . . 1 . . 1 . 1 . . 2 Energy Discharges 6 | . . . . . . . 1 . . 1 . . . . . . . 4 Parts Rejected 2 | . . . . . . . . . . . . . . . . . . 2 Parts Fused 1 | . . . . . . . . . . . . . . . . . . 1 Data Loss (minor) 8 | . . . . . . . . . . 3 . . 1 . 1 . . 3 Data Loss (major) 1 | . . . . . . . . . . . . . . . . . . 1 Misdirections 1 | . . . . . . . . . . . . . . . . . . 1 Overload Shots . | . . . . . . . . . . . . . . . . . . . Overflow Damage 1239 | . . . . . 25 8 72 . . . 149 . . . 8 232 402 343 Projectiles . | . . . . . . . . . . . . . . . . . . . Explosions 29 | . . . . . . . . . . . . . . . . . . 29 Melee 1210 | . . . . . 25 8 72 . . . 149 . . . 8 232 402 314 Knockbacks . | . . . . . . . . . . . . . . . . . . . Impact . | . . . . . . . . . . . . . . . . . . . Kinetic . | . . . . . . . . . . . . . . . . . . . Secondary . | . . . . . . . . . . . . . . . . . . . Self-Inflicted Damage 112 | . 26 33 . . . . . . . . . . . . . . . 53 Shots 4 | . 2 1 . . . . . . . . . . . . . . . 1 Rammed . | . . . . . . . . . . . . . . . . . . . Targets Rammed . | . . . . . . . . . . . . . . . . . . . Kicked . | . . . . . . . . . . . . . . . . . . . Crushed . | . . . . . . . . . . . . . . . . . . . Highest Temperature 312 | 30 102 312 . . . . . . . 213 . . 69 . 104 . . 219 Average Temperature 57 | 18 40 59 . . . . . . . 123 . . 42 . 74 . . 120 Received Heat Transfer 773 | . 24 309 . . 261 12 . 35 18 9 . . . 42 . 36 . 27 Siege Activations . | . . . . . . . . . . . . . . . . . . . Martial Activations . | . . . . . . . . . . . . . . . . . . . Shielding Activations . | . . . . . . . . . . . . . . . . . . . Robots Disrupted 5 | . . . . . . . . . . 1 . . . . . 2 2 . Combat Hostiles 4 | . . . . . . . . . . 1 . . . . . 2 1 . Robots Corrupted . | . . . . . . . . . . . . . . . . . . . Combat Hostiles . | . . . . . . . . . . . . . . . . . . . Parts Fried . | . . . . . . . . . . . . . . . . . . . Impact Corruptions . | . . . . . . . . . . . . . . . . . . . Robots Melted . | . . . . . . . . . . . . . . . . . . . Combat Hostiles . | . . . . . . . . . . . . . . . . . . . Parts Melted 2 | . . 2 . . . . . . . . . . . . . . . . Heat Transferred 2542 | 74 470 1998 . . . . . . . . . . . . . . . . Parts Sabotaged . | . . . . . . . . . . . . . . . . . . . Parts Stolen . | . . . . . . . . . . . . . . . . . . . Parts Stripped . | . . . . . . . . . . . . . . . . . . . Power Chain Reactions 1 | . 1 . . . . . . . . . . . . . . . . . Alert | -11 -10 -10 -8 -8 -6 -5 -5 -5 -4 -4 -4 -4 -4 -3 -3 -3 -2 -2 ------- Run | Yrd Mat Sub Rec Scr Fac Fac Upp War Pro Fac Upp Upp Zhi Pro Res Qua Res Tes Maximum Alert Level . | . . . . . . . . . . . . . . . . . . . Low Security (%) 100 | 100 100 . 100 . 100 100 . . . 100 . . . . 100 100 100 100 Level 1 . | . . . . . . . . . . . . . . . . . . . Level 2 . | . . . . . . . . . . . . . . . . . . . Level 3 . | . . . . . . . . . . . . . . . . . . . Level 4 . | . . . . . . . . . . . . . . . . . . . Level 5 . | . . . . . . . . . . . . . . . . . . . High Security . | . . . . . . . . . . . . . . . . . . . Max Security . | . . . . . . . . . . . . . . . . . . . Peak Influence 177 | 5 177 . . . 62 67 . . . 37 . . . . 91 125 113 74 Initial 65 | . . . . . . . . . . . . . . . 27 36 65 51 Average 35 | . 85 . . . 18 18 . . . 3 . . . . 51 79 71 11 Influence Increases 2224 | 5 248 95 . . 142 138 155 15 210 61 90 . . 110 179 161 346 269 Destroy 0b10 Robot/C 900 | . 100 80 . . 80 . 100 . 140 20 20 . . 20 60 60 120 100 Destroy 0b10 Robot/NC 105 | 5 10 . . . 5 10 . . 10 . . . . . 5 . 35 25 Destroy Leader 162 | . 24 . . . 22 4 10 . 10 10 10 . . . 12 10 26 24 Allied During Kill 20 | . . . . . . . . . 20 . . . . . . . . . Successful Hack 199 | . 18 . . . 12 26 . . . 12 . . . . 45 14 45 27 Disable Machine 150 | . 60 . . . . 15 . . . . . . . . . 75 . . Destroy Structure 178 | . 36 . . . 8 8 . . . 4 . . . . 12 2 45 63 Partial Spotted 90 | . . . . . . . . . . . . . . . 15 . 60 15 Lose Combat Pursuer 420 | . . 15 . . 15 75 45 15 30 15 60 . . 90 30 . 15 15 Influence Decreases 2170 | 5 190 153 . . 142 138 60 110 210 61 30 42 18 70 153 110 370 308 Entered New Map 291 | . . 29 . . . . . 95 . . . 12 18 . 13 30 52 42 Time Decay 1628 | 5 190 116 . . 132 138 50 15 134 61 30 30 . 70 120 70 278 189 Lost Part 185 | . . 8 . . 10 . 10 . 10 . . . . . 20 10 40 77 Lost Ally 66 | . . . . . . . . . 66 . . . . . . . . . Squads Dispatched 25 | . 1 . . . 4 3 . . . 4 . . . . 3 . 3 7 Investigation 10 | . . . . . 3 3 . . . 2 . . . . 1 . 1 . Extermination 7 | . . . . . 1 . . . . 1 . . . . 1 . 2 2 Reinforcement 8 | . 1 . . . . . . . . 1 . . . . 1 . . 5 Assault . | . . . . . . . . . . . . . . . . . . . Garrison . | . . . . . . . . . . . . . . . . . . . Intercept . | . . . . . . . . . . . . . . . . . . . Searches Triggered . | . . . . . . . . . . . . . . . . . . . Construction Impeded . | . . . . . . . . . . . . . . . . . . . Haulers Reinforced . | . . . . . . . . . . . . . . . . . . . Active Scanning Responses . | . . . . . . . . . . . . . . . . . . . Cargo Convoy Interrupts . | . . . . . . . . . . . . . . . . . . . Stealth | -11 -10 -10 -8 -8 -6 -5 -5 -5 -4 -4 -4 -4 -4 -3 -3 -3 -2 -2 --------- Run | Yrd Mat Sub Rec Scr Fac Fac Upp War Pro Fac Upp Upp Zhi Pro Res Qua Res Tes Distress Signals 3 | . 1 . . . . . . . . 1 . . . . 1 . . . Communications Jammed 4 | . . . . . . . . . . . . . . . . . 3 1 Distress Signals 4 | . . . . . . . . . . . . . . . . . 3 1 Times Spotted 156 | . 8 21 . . 11 6 7 18 12 5 8 . . 7 4 6 16 27 Peak Tracking Total 12 | . 4 3 . . 4 5 5 12 8 5 5 . . 3 3 3 5 9 Tactical Retreats 13 | . . 1 . . 1 1 1 1 1 1 1 . . 2 1 . 1 1 Traps | -11 -10 -10 -8 -8 -6 -5 -5 -5 -4 -4 -4 -4 -4 -3 -3 -3 -2 -2 ------- Run | Yrd Mat Sub Rec Scr Fac Fac Upp War Pro Fac Upp Upp Zhi Pro Res Qua Res Tes Traps Triggered 14 | . . 3 . . 1 4 . . . . . . . . . 1 4 1 Indirectly . | . . . . . . . . . . . . . . . . . . . Trap Hack Attempts . | . . . . . . . . . . . . . . . . . . . Triggered . | . . . . . . . . . . . . . . . . . . . Disarmed . | . . . . . . . . . . . . . . . . . . . Reprogrammed . | . . . . . . . . . . . . . . . . . . . Reused . | . . . . . . . . . . . . . . . . . . . Traps Extracted . | . . . . . . . . . . . . . . . . . . . Installed . | . . . . . . . . . . . . . . . . . . . Triggered . | . . . . . . . . . . . . . . . . . . . Machines | -11 -10 -10 -8 -8 -6 -5 -5 -5 -4 -4 -4 -4 -4 -3 -3 -3 -2 -2 ---------- Run | Yrd Mat Sub Rec Scr Fac Fac Upp War Pro Fac Upp Upp Zhi Pro Res Qua Res Tes Machines Disabled 14 | . 4 1 . . . 1 . 1 2 . . . . . . 5 . . Max in Single Turn 1 | . 1 1 . . . 1 . 1 1 . . . . . . 1 . . Garrison Access 2 | . . . . . . . . . . 1 . . . . . . 1 . Machines Repaired . | . . . . . . . . . . . . . . . . . . . Machines Dismantled 1 | . . . . . . . . 1 . . . . . . . . . . Machines Sabotaged . | . . . . . . . . . . . . . . . . . . . Overloaded Fab Kills . | . . . . . . . . . . . . . . . . . . . Hacking | -11 -10 -10 -8 -8 -6 -5 -5 -5 -4 -4 -4 -4 -4 -3 -3 -3 -2 -2 --------- Run | Yrd Mat Sub Rec Scr Fac Fac Upp War Pro Fac Upp Upp Zhi Pro Res Qua Res Tes Machines Accessed 67 | . 4 . 2 5 9 6 . 2 1 7 1 . 8 . 5 5 7 5 Terminals 30 | . 3 . 1 . 6 3 . . . 4 . . . . 3 4 3 3 Fabricators . | . . . . . . . . . . . . . . . . . . . Repair Stations 3 | . . . . . . . . . . . . . . . . . 2 1 Recycling Units 11 | . 1 . 1 . 3 3 . . . 2 . . . . . . 1 . Scanalyzers 2 | . . . . . . . . . . . . . . . 1 1 . . Garrison Access 4 | . . . . . . . . . . 1 . . . . 1 . 1 1 Total Hacks 208 | . 16 . 5 33 15 12 . 3 1 22 5 . 47 . 11 10 13 15 Successful 134 | . 11 . 2 33 5 6 . 3 1 6 5 . 47 . 3 2 4 6 Failed 74 | . 5 . 3 . 10 6 . . . 16 . . . . 8 8 9 9 Catastrophic 14 | . . . 1 . 3 2 . . . 2 . . . . 1 2 1 2 Database Lockouts . | . . . . . . . . . . . . . . . . . . . Manual 83 | . 11 . 1 . 15 13 . . 1 13 . . . . 6 8 8 7 Terminals 79 | . 12 . 1 . 11 7 . . . 17 . . . . 8 9 6 8 Fabricators . | . . . . . . . . . . . . . . . . . . . Repair Stations 8 | . . . . . . . . . . . . . . . . . 3 5 Recycling Units 23 | . 4 . 4 . 4 5 . . . 4 . . . . . . 2 . Scanalyzers 3 | . . . . . . . . . . . . . . . 2 1 . . Garrison Access 6 | . . . . . . . . . . 1 . . . . 1 . 2 2 Terminal Hacks 94 | . 2 . . 33 . . . 3 1 1 5 . 47 . 1 1 . . Record 77 | . . . . 32 . . . 2 1 . 5 . 35 . 1 1 . . Part Schematic 4 | . . . . . . . . . . . . . 4 . . . . . Robot Analysis 4 | . . . . . . . . . . . . . 4 . . . . . Prototype ID Bank 5 | . 1 . . . . . . . . . . . 4 . . . . . Open Door 2 | . . . . 1 . . . 1 . . . . . . . . . . Hauler Manifests 1 | . 1 . . . . . . . . . . . . . . . . . Zone Layout 1 | . . . . . . . . . . 1 . . . . . . . . Fabricator Hacks . | . . . . . . . . . . . . . . . . . . . Repair Station Hacks 5 | . . . . . . . . . . . . . . . . . 1 4 Scan Component 3 | . . . . . . . . . . . . . . . . . 1 2 Repair 2 | . . . . . . . . . . . . . . . . . . 2 Recycling Unit Hacks 4 | . 2 . 2 . . . . . . . . . . . . . . . Report Inventory 2 | . 1 . 1 . . . . . . . . . . . . . . . Retrieve Components 2 | . 1 . 1 . . . . . . . . . . . . . . . Scanalyzer 1 | . . . . . . . . . . . . . . . 1 . . . Retrieve Study 1 | . . . . . . . . . . . . . . . 1 . . . Garrison Access Hacks 2 | . . . . . . . . . . 1 . . . . . . 1 . Seal Access 2 | . . . . . . . . . . 1 . . . . . . 1 . Unauthorized Hacks 28 | . 7 . . . 5 6 . . . 4 . . . . 1 1 2 2 Terminals 21 | . 6 . . . 3 4 . . . 3 . . . . 1 1 1 2 Assimilate 1 | . 1 . . . . . . . . . . . . . . . . . Botnet 14 | . 2 . . . 2 2 . . . 3 . . . . 1 1 1 2 Skim 6 | . 3 . . . 1 2 . . . . . . . . . . . . Fabricators . | . . . . . . . . . . . . . . . . . . . Repair Stations . | . . . . . . . . . . . . . . . . . . . Recycling Units 7 | . 1 . . . 2 2 . . . 1 . . . . . . 1 . Recyclers 1 | . 1 . . . . . . . . . . . . . . . . . Fedlink 6 | . . . . . 2 2 . . . 1 . . . . . . 1 . Scanalyzers . | . . . . . . . . . . . . . . . . . . . Garrison Access . | . . . . . . . . . . . . . . . . . . . Data Cores Recovered . | . . . . . . . . . . . . . . . . . . . Used . | . . . . . . . . . . . . . . . . . . . Hacking Detections 40 | . 3 . 2 . 7 4 . . . 5 . . . . 5 4 6 4 Full Trace Events 4 | . . . . . 1 1 . . . 1 . . . . 1 . . . Feedback Events 1 | . . . . . . 1 . . . . . . . . . . . . Corruption 1 | . . . . . . 1 . . . . . . . . . . . . Feedback Blocked . | . . . . . . . . . . . . . . . . . . . Robot Schematics Acquired 1 | . . . . . . . . . . . . . . . . . . 1 Robots Built . | . . . . . . . . . . . . . . . . . . . Authchips . | . . . . . . . . . . . . . . . . . . . Time . | . . . . . . . . . . . . . . . . . . . Total Robot Build Rating . | . . . . . . . . . . . . . . . . . . . Part Schematics Acquired 7 | . . . . . . . . . . . . . 4 . . . . 3 Parts Built . | . . . . . . . . . . . . . . . . . . . Authchips . | . . . . . . . . . . . . . . . . . . . Time . | . . . . . . . . . . . . . . . . . . . Total Part Build Rating . | . . . . . . . . . . . . . . . . . . . Part Studies Acquired 1 | . . . . . . . . . . . . . . . 1 . . . Parts Repaired 2 | . . . . . . . . . . . . . . . . . . 2 Time 151 | . . . . . . . . . . . . . . . . . . 151 Parts Recycled . | . . . . . . . . . . . . . . . . . . . Recycled Matter . | . . . . . . . . . . . . . . . . . . . Retrieved Matter . | . . . . . . . . . . . . . . . . . . . Retrieved Components 5 | . 3 . 2 . . . . . . . . . . . . . . . Parts Scanalyzed . | . . . . . . . . . . . . . . . . . . . Part Schematics Acquired . | . . . . . . . . . . . . . . . . . . . Parts Damaged . | . . . . . . . . . . . . . . . . . . . Bothacking | -11 -10 -10 -8 -8 -6 -5 -5 -5 -4 -4 -4 -4 -4 -3 -3 -3 -2 -2 ------------ Run | Yrd Mat Sub Rec Scr Fac Fac Upp War Pro Fac Upp Upp Zhi Pro Res Qua Res Tes Used RIF Installer . | . . . . . . . . . . . . . . . . . . . Robots Hacked . | . . . . . . . . . . . . . . . . . . . Non-combat . | . . . . . . . . . . . . . . . . . . . Combat . | . . . . . . . . . . . . . . . . . . . Robot Hacks Applied . | . . . . . . . . . . . . . . . . . . . Relay Couplers Released . | . . . . . . . . . . . . . . . . . . . Fabnet Peak Effective % . | . . . . . . . . . . . . . . . . . . . Robots Rewired 5 | . . . . . . . . 5 . . . . . . . . . . Allies Hacked . | . . . . . . . . . . . . . . . . . . . Hacks Repelled . | . . . . . . . . . . . . . . . . . . . Allies | -11 -10 -10 -8 -8 -6 -5 -5 -5 -4 -4 -4 -4 -4 -3 -3 -3 -2 -2 -------- Run | Yrd Mat Sub Rec Scr Fac Fac Upp War Pro Fac Upp Upp Zhi Pro Res Qua Res Tes Total Allies 5 | . . . . . . . . 5 . . . . . . . . . . Largest Group 5 | . . . . . . . . 5 5 . . . . . . . . . Highest-Rated Group 265 | . . . . . . . . 265 265 . . . . . . . . . Highest-Rated Ally 68 | . . . . . . . . 68 68 . . . . . . . . . Initial UFD Resources 83 | . . . . . 23 39 53 53 57 57 67 67 67 70 70 70 73 83 Total Orders . | . . . . . . . . . . . . . . . . . . . Ally Attacks 21 | . . . . . . . . . 21 . . . . . . . . . Total Damage 1023 | . . . . . . . . . 1023 . . . . . . . . . Kills 9 | . . . . . . . . . 9 . . . . . . . . . Allies Corrupted 1 | . . . . . . . . . 1 . . . . . . . . . Allies Melted 1 | . . . . . . . . 1 . . . . . . . . . . Intel | -11 -10 -10 -8 -8 -6 -5 -5 -5 -4 -4 -4 -4 -4 -3 -3 -3 -2 -2 ------- Run | Yrd Mat Sub Rec Scr Fac Fac Upp War Pro Fac Upp Upp Zhi Pro Res Qua Res Tes Active Infowar (turns) 8642 | 10 529 977 139 2218 392 415 130 715 381 527 79 77 87 177 246 159 615 769 Optics 511 | . . 511 . . . . . . . . . . . . . . . . Sensors 3435 | . . . . . . 189 113 570 . 401 79 77 87 177 246 117 615 764 Terrain 6742 | . . . 139 2218 392 415 120 715 381 527 79 77 87 177 36 144 597 638 Structural 129 | . . . . . . . . . . . . . . . . . 10 119 Seismic 2296 | 10 529 466 . . . . . . . . . . . . . . 544 747 Cloaking 304 | . . . . . . . . . . . . . . . . . . 304 Jamming 1290 | . . . . . . . 23 1 2 . . . . . . . 602 662 Robot Analysis Total 4 | . . . . . . . . . . . . . 4 . . . . . Derelict Logs Recovered 10 | . . 3 . 5 . . . . 1 . 1 . . . . . . . Drone Launches . | . . . . . . . . . . . . . . . . . . . Drone Recoveries . | . . . . . . . . . . . . . . . . . . . Exploration | -11 -10 -10 -8 -8 -6 -5 -5 -5 -4 -4 -4 -4 -4 -3 -3 -3 -2 -2 ------------- Run | Yrd Mat Sub Rec Scr Fac Fac Upp War Pro Fac Upp Upp Zhi Pro Res Qua Res Tes Turns Passed 12779 | 70 529 4252 199 2336 433 425 178 1191 381 527 79 77 87 177 246 159 615 818 Spaces Moved 11075 | 36 170 2875 145 1396 357 364 133 1332 594 640 203 191 159 440 487 217 774 562 Core 198 | 4 . . . 194 . . . . . . . . . . . . . . Treads 1272 | 32 170 146 . 920 4 . . . . . . . . . . . . . Legs . | . . . . . . . . . . . . . . . . . . . Wheels 3735 | . . 2729 145 282 353 226 . . . . . . . . . . . . Hover 5870 | . . . . . . 138 133 1332 594 640 203 191 159 440 487 217 774 562 Flight . | . . . . . . . . . . . . . . . . . . . Fastest Speed 15 | 50 160 120 130 50 80 38 34 38 22 34 15 34 34 15 16 17 26 16 Average Speed 84 | 147 199 131 130 163 88 70 38 49 37 34 32 34 34 33 30 29 26 36 Slowest Speed 1000 | 160 240 320 130 1000 165 150 88 92 38 38 34 34 34 34 80 30 80 260 Overloaded Moves 66 | . . . . . . . 1 . 14 . 17 . . 12 7 10 . 5 Propulsion Burnouts . | . . . . . . . . . . . . . . . . . . . Robots Hopped . | . . . . . . . . . . . . . . . . . . . Potential Cave-ins 7 | . 1 4 . . . . . 2 . . . . . . . . . . Cave-ins Triggered . | . . . . . . . . . . . . . . . . . . . Teleports 1 | . . . . . . . . . . . . . . . . . . 1 Exploration Rate (%) 41 | 4 32 75 34 86 14 10 26 94 81 16 47 46 62 53 15 19 25 48 Regions Visited 18 Branch Regions 12 Pre-discovered Areas 13 | . . 1 . 6 1 . . . 1 . 1 . 3 . . . . . Known Exits Taken 13 | . . . . . 1 1 1 1 1 1 1 1 1 1 1 1 1 . Unknown Exits Taken 5 | 1 1 1 1 1 . . . . . . . . . . . . . . Scrap Searched 25 | . . 16 . 5 . . 1 . 2 . . 1 . . . . . . Spaces Dug 43 | . . 2 . . 8 4 . . . 2 1 1 . . 6 1 15 3 Terrain Destroyed 162 | . 37 61 . . 8 4 . . . 2 1 1 . . 6 1 15 26 Melee 41 | . . . . . 8 4 . . . 2 1 1 . . 6 1 15 3 Projectile 20 | . . 20 . . . . . . . . . . . . . . . . AOE 101 | . 37 41 . . . . . . . . . . . . . . . 23 Terrain Rammed . | . . . . . . . . . . . . . . . . . . . Walls Destroyed . | . . . . . . . . . . . . . . . . . . . Machines Disabled . | . . . . . . . . . . . . . . . . . . . Actions | -11 -10 -10 -8 -8 -6 -5 -5 -5 -4 -4 -4 -4 -4 -3 -3 -3 -2 -2 --------- Run | Yrd Mat Sub Rec Scr Fac Fac Upp War Pro Fac Upp Upp Zhi Pro Res Qua Res Tes Total 14037 | 45 335 3139 155 1466 437 518 243 1850 747 944 209 199 191 468 568 289 1124 1110 Wait 1958 | . 140 64 5 . 24 88 82 366 144 280 2 7 15 28 59 12 250 392 Move 11057 | 35 169 2874 144 1395 356 363 132 1331 593 639 202 190 158 439 486 216 773 562 Hop . | . . . . . . . . . . . . . . . . . . . Pick Up 106 | 1 3 32 . 19 6 9 1 9 . 2 . . 2 . . 5 11 6 Fast Attach 103 | 7 . 5 2 12 3 12 3 12 4 6 . . 7 . 1 8 6 15 Attach 97 | . 3 21 . 1 11 1 4 5 1 2 . . . . 5 6 15 22 Detach 69 | . 2 9 2 6 7 3 1 5 . 4 . . . . 2 7 8 13 Swap 10 | . 3 2 . 2 . . . 1 . 1 . . 1 . . . . . Drop 124 | . 2 13 . 31 2 11 3 17 3 5 . . 8 . . 6 10 13 Fire 135 | 2 13 119 . . . . . . . . . . . . . . . 1 Melee 221 | . . . . . 28 14 17 . 2 5 5 2 . 1 15 23 51 58 Ram . | . . . . . . . . . . . . . . . . . . . Kick . | . . . . . . . . . . . . . . . . . . . Crush . | . . . . . . . . . . . . . . . . . . . Escape Stasis 51 | . . . . . . 17 . . . . . . . . . 6 . 28 Rewire 98 | . . . 2 . . . . 96 . . . . . . . . . . Trap . | . . . . . . . . . . . . . . . . . . . Miscellaneous 8 | . . . . . . . . 8 . . . . . . . . . . Route ------- -11/Scrapyard -10/Materials (discovered 2 exits: [*Mat] / [*Sub]) -10/Subcaves (discovered 3 exits: [*Mat x2] / *Rec) -8/Recycling -8/Scraptown -6/Factory (discovered 5 exits: *Fac x4 / Low) -5/Factory -5/Upper Caves (discovered 2 exits: Upp / *War) -5/Warlord -4/Proximity Caves -4/Factory (discovered 4 exits: Res x3 / *Upp) -4/Upper Caves -4/Upper Caves -4/Zhirov -3/Proximity Caves -3/Research (discovered 4 exits: Res x2 / *Qua x2) -3/Quarantine -2/Research (discovered 2 exits: *Tes x2) -2/Testing History --------- Turn | Location | Event 44 | -11/Scrapyard | Discovered new exit (range 14) 71 | -11/Scrapyard | Entered Materials 304 | -10/Materials | Discovered new exit (range 8) 308 | -10/Materials | Build established: Mutant 586 | -10/Materials | Discovered new exit (range 7) 600 | -10/Materials | Entered Subcaves 738 | -10/Subcaves | Discovered new exit (range 13) 847 | -10/Subcaves | Learned location of Storage (-8) 878 | -10/Subcaves | Disturbed a concealed Subdweller 879 | -10/Subcaves | Disturbed a concealed Subdweller 1099 | -10/Subcaves | Lost 3 parts (2n1u) 1169 | -10/Subcaves | Discovered new exit (range 12) 1209 | -10/Subcaves | Core integrity fell below 50% 1271 | -10/Subcaves | Discovered new exit (range 9) 1499 | -10/Subcaves | Ambushed by angry Subdweller bent on revenge 1815 | -10/Subcaves | Core integrity fell below 20% 1838 | -10/Subcaves | Shifting Twisted Machinery released Sub. Laser 2019 | -10/Subcaves | Shifting Twisted Machinery released Sub. Beam Cannon 2020 | -10/Subcaves | Shifting Twisted Machinery released Riot Gun 2118 | -10/Subcaves | Build established: Scavenger-Mutant 2126 | -10/Subcaves | A swath of the cavern ceiling suddenly collapsed 2167 | -10/Subcaves | Disturbed a concealed Subdweller 2394 | -10/Subcaves | Learned 8 Materials zone layouts 2410 | -10/Subcaves | Disturbed a concealed Subdweller 2590 | -10/Subcaves | Shifting Twisted Machinery released Sub. Machine Gun 3818 | -10/Subcaves | Lost 3 parts (1p1u1w) 4079 | -10/Subcaves | Build established: Mutant 4455 | -10/Subcaves | Build established: Scavenger-Mutant 4852 | -10/Subcaves | Entered Recycling 5019 | -8/Recycling | Scanned before Scraplab entrance 5038 | -8/Recycling | Entered Scraplab 5049 | -8/Recycling | Discovered new exit (range 2) 5051 | -8/Recycling | Entered Scraptown 5157 | -8/Scraptown | Scanned Subdweller tech in exchange for log data 5159 | -8/Scraptown | Learned Research stockpile data 5161 | -8/Scraptown | Build established: Mutant 5161 | -8/Scraptown | Learned location of Zion (-7) 5162 | -8/Scraptown | Learned location of Testing (-2) 5163 | -8/Scraptown | Learned Research trap positions 5165 | -8/Scraptown | Learned location of 1 exit from Research 5631 | -8/Scraptown | Heard Great Nut preacher, LISTEN AND RECITE! 5958 | -8/Scraptown | Visited UFD Registry 5958 | -8/Scraptown | Registered with UFD as "Electrohacker" 5986 | -8/Scraptown | Visited CPS Storage 6009 | -8/Scraptown | Visited Cave Peace 6077 | -8/Scraptown | Visited Red Mages 6151 | -8/Scraptown | Visited IN-MT5's Study 6166 | -8/Scraptown | Visited SPCMW 6191 | -8/Scraptown | Visited Awakened 6305 | -8/Scraptown | Visited Cartography Club 6357 | -8/Scraptown | Found Surveybot 17 Chip 6374 | -8/Scraptown | Learned location of Recycling (-8) 6374 | -8/Scraptown | Learned location of Lower Caves (-6) 6374 | -8/Scraptown | Learned location of Archives (-4) 6374 | -8/Scraptown | Learned 20 Factory zone layouts 6374 | -8/Scraptown | Learned 24 Factory zone layouts 6374 | -8/Scraptown | Learned 8 Research zone layouts 6374 | -8/Scraptown | Learned 12 Research zone layouts 6374 | -8/Scraptown | Learned 4 Mines zone layouts 6374 | -8/Scraptown | Learned 12 Lower Caves zone layouts 6374 | -8/Scraptown | Learned 20 Upper Caves zone layouts 6374 | -8/Scraptown | Learned 24 Upper Caves zone layouts 6374 | -8/Scraptown | Learned location of 2 exits from Factory 6374 | -8/Scraptown | Learned location of 1 exit from Proximity Caves 6386 | -8/Scraptown | Found Deep Structural Scanner 6495 | -8/Scraptown | Received an X-ray algorithm 6499 | -8/Scraptown | Visited A0-MCA Data Center 6509 | -8/Scraptown | Given a B- rating by A0-MCA 6547 | -8/Scraptown | Visited LU-1G1's Boring Crew 6575 | -8/Scraptown | Visited DA-N13 Charitable Foundation 6590 | -8/Scraptown | Found DCF Scrap (29 items) 6652 | -8/Scraptown | Visited Science Testing Area 6676 | -8/Scraptown | Visited Scrap Suit Storage 6764 | -8/Scraptown | Delivered Scrap Shield to a Scientist 6944 | -8/Scraptown | Found Scrap Suit 6976 | -8/Scraptown | Visited Sword Containment 6993 | -8/Scraptown | Found Prototype Slashing Weapon 6993 | -8/Scraptown | Identified Companion Sword 7026 | -8/Scraptown | Visited Chapter 10 7130 | -8/Scraptown | Visited Abandonware Association 7150 | -8/Scraptown | Learned abandonware demo "REPAIR.EXE" 7194 | -8/Scraptown | Visited Derelict Rescue Squad 7295 | -8/Scraptown | Met Optimus 7295 | -8/Scraptown | Accepted into 0bPrime 7384 | -8/Scraptown | Discovered new exit (range 3) 7387 | -8/Scraptown | Entered Factory 7387 | -6/Factory | Evolved 8 slots: Propulsion x2, Utility x6 7388 | -6/Factory | Identified exit to Factory 7389 | -6/Factory | Identified exit to Lower Caves 7748 | -6/Factory | Loaded intel: 8 recycling unit locations 7765 | -6/Factory | Learned location of Protoforge (-2) 7820 | -6/Factory | Entered another Factory area 7820 | -5/Factory | Evolved 2 slots: Utility x2 8022 | -5/Factory | Discovered new exit (range 9) 8053 | -5/Factory | Identified exit to Upper Caves 8124 | -5/Factory | Loaded intel: 8 recycling unit locations 8245 | -5/Factory | Entered Upper Caves 8246 | -5/Upper Caves | Identified exit to Upper Caves 8247 | -5/Upper Caves | UFD Scientist delivered a prototype 8247 | -5/Upper Caves | Found Prototype Protection 8247 | -5/Upper Caves | Identified Enh. Scrap Shield 8421 | -5/Upper Caves | A Derelict revealed a hidden shortcut to "reach the base" 8422 | -5/Upper Caves | Identified exit to Warlord 8423 | -5/Upper Caves | Entered Warlord 8424 | -5/Warlord | Identified exit to Proximity Caves 8458 | -5/Warlord | System corruption cleaned by Quarantine Array 8665 | -5/Warlord | Build established: Ninja 8677 | -5/Warlord | Warlord's base attacked by MAIN.C 8678 | -5/Warlord | Found Prototype Special Weapon 8678 | -5/Warlord | Identified RU-N14's Throwing Claymores v3 8851 | -5/Warlord | Found Prototype Device 8851 | -5/Warlord | Identified Exp. Phase Shifter 8866 | -5/Warlord | Found Prototype Processor 8866 | -5/Warlord | Identified Exp. Armor Integrity Analyzer 8871 | -5/Warlord | Found Prototype Device 8871 | -5/Warlord | Identified Exp. Focal Shield 8903 | -5/Warlord | Rebuked by Warlord 9027 | -5/Warlord | Warlord forces counterattacked 9321 | -5/Warlord | Build established: Commander-Mutant 9352 | -5/Warlord | Warlord base infiltrated, sounded retreat 9460 | -5/Warlord | Found Prototype Device 9460 | -5/Warlord | Identified Adv. Kinecellerator 9463 | -5/Warlord | Found Prototype Processor 9463 | -5/Warlord | Identified Exp. Targeting Computer 9563 | -5/Warlord | Lost 4 allies 9577 | -5/Warlord | Spotted Executioner 9614 | -5/Warlord | Entered Proximity Caves 9614 | -4/Proximity Caves | Accompanied by 5 allies 9615 | -4/Proximity Caves | Identified exit to Factory 9616 | -4/Proximity Caves | Lost 12 allies 9667 | -4/Proximity Caves | Acquired the password to a Derelict Tinkerer's latest research 9671 | -4/Proximity Caves | Found Prototype Special Weapon 9671 | -4/Proximity Caves | Identified Molecular Deconstructor 9925 | -4/Proximity Caves | Found Alien Artifact 9925 | -4/Proximity Caves | Identified Dimensional Node Initializer 9925 | -4/Proximity Caves | Initialized slip node 9988 | -4/Proximity Caves | Attacked by a faux Warlord 9995 | -4/Proximity Caves | Entered Factory 9995 | -4/Factory | Evolved 2 slots: Power x1, Propulsion x1 9996 | -4/Factory | Identified exit to Research 10023 | -4/Factory | Build established: Mutant 10040 | -4/Factory | Spotted B-86 Titan 10043 | -4/Factory | Noticed a derelict Sapper rigging charges 10118 | -4/Factory | Loaded intel: 8 recycling unit locations 10382 | -4/Factory | Build established: Scout 10446 | -4/Factory | Discovered new exit (range 11) 10453 | -4/Factory | Identified exit to Upper Caves 10522 | -4/Factory | Entered Upper Caves 10523 | -4/Upper Caves | Identified exit to Upper Caves 10579 | -4/Upper Caves | Learned location of 1 exit from Research 10584 | -4/Upper Caves | Learned location of Extension (-4) 10584 | -4/Upper Caves | Learned Factory emergency access door positions 10584 | -4/Upper Caves | Learned Armory security intel 10601 | -4/Upper Caves | Entered another Upper Caves area 10602 | -4/Upper Caves | Discovered new exit (range 133) 10678 | -4/Upper Caves | Identified exit to Zhirov 10678 | -4/Upper Caves | Entered Zhirov 10678 | -4/Zhirov | Discovered new exit (range 3) 10685 | -4/Zhirov | Met Zhirov 10691 | -4/Zhirov | Learned location of Quarantine (-3) 10691 | -4/Zhirov | Learned location of Command (-1) 10698 | -4/Zhirov | Zhirov requested help retrieving the SGEMP Prototype 10705 | -4/Zhirov | Found Alien Artifact 10705 | -4/Zhirov | Identified Integrated Dissipator 10705 | -4/Zhirov | Installed Integrated Dissipator, increased core heat dissipation (+20) 10752 | -4/Zhirov | Found Alien Artifact 10765 | -4/Zhirov | Identified exit to Proximity Caves 10765 | -4/Zhirov | Entered Proximity Caves 10931 | -3/Proximity Caves | Discovered exit to Research (range 16) 10942 | -3/Proximity Caves | Entered Research 10942 | -3/Research | Evolved 2 slots: Propulsion x1, Utility x1 10943 | -3/Research | Identified exit to Quarantine 10943 | -3/Research | Identified exit to Research 10945 | -3/Research | Loaded intel: 76 trap records 11188 | -3/Research | Entered Quarantine 11217 | -3/Quarantine | Found Alien Artifact 11217 | -3/Quarantine | Identified Phase Redirector 11243 | -3/Quarantine | Found Alien Artifact 11243 | -3/Quarantine | Identified Subatomic Replicator 11248 | -3/Quarantine | Used Subatomic Replicator to replicate Lrn. Sensor Array 11326 | -3/Quarantine | Discovered exit to Research (range 10) 11328 | -3/Quarantine | Found Alien Artifact 11328 | -3/Quarantine | Identified Phase Armor 11345 | -3/Quarantine | Found Alien Artifact 11347 | -3/Quarantine | Entered Research 11347 | -2/Research | Evolved 2 slots: Propulsion x1, Utility x1 11348 | -2/Research | Identified exit to Testing 11402 | -2/Research | Loaded intel: 5 recycling unit locations 11867 | -2/Research | Found Prototype Device 11867 | -2/Research | Identified Thermal Barrier 11924 | -2/Research | Build established: Ninja 11952 | -2/Research | Discovered exit to Testing (range 15) 11962 | -2/Research | Entered Testing 12071 | -2/Testing | Repaired Cld. Gravmag System 12136 | -2/Testing | Repaired Lrn. Sensor Array 12224 | -2/Testing | System corruption reached 10% 12533 | -2/Testing | Build established: Infiltrator-Ninja 12594 | -2/Testing | Scanned by Researcher 12609 | -2/Testing | Identified Core Reset Matrix 12609 | -2/Testing | Identified Transdimensional Reconstructor 12609 | -2/Testing | Used Core Reset Matrix 12610 | -2/Testing | Warped through subspace 12624 | -2/Testing | Found Prototype Device 12624 | -2/Testing | Identified Exp. Shock Absorption System 12634 | -2/Testing | Found Prototype Device 12634 | -2/Testing | Identified Exp. EM Shield 12638 | -2/Testing | Lost 7 parts (2p1n4u) 12737 | -2/Testing | Core integrity fell below 50% 12770 | -2/Testing | Core integrity fell below 20% 12780 | -2/Testing | Destroyed by H-88 Terminator with Heavy Machine Gun Last Messages --------------- 12775_ Penetrated by Slug. 12775_ Cld. Antigrav System destroyed. 12775_ Penetrated by Slug. 12775_ U-05 Engineer lays Concrete. 12776_ U-05 Engineer builds a Wall. 12776_ Slug penetrates Wall. 12777_ Penetrated by Slug. 12777_ H-88 Terminator destroyed. 12777_ U-05 Engineer builds a Wall. 12778_ Wall collapses. 12778_ U-05 Engineer lays Concrete. 12779_ Slug penetrates H-88 Terminator. 12779_ U-05 Engineer destroyed. 12779_ Penetrated by Slug. 12780_ Acquired 10 matter. 12780_ Penetrated by Slug. 12780_ Critical hit (Burn: +37). 12780_ Slug penetrates Door. 12780_ Penetrated by Slug. 12780_ O-16 Technician destroyed. Map ----- +----------------------------------------------------+ | ## ?????????????????????????????????? | | ## ??????????????????????????????? | | """ """ ## """ ??????????????????????????????? | | """ """ ## "" ??????????????????????????????? | | """ """ ##########??????????????????????????????? | | # ??????????????????????????????? | | ]= # ??????????????????????????????? | | = + ? ??????????????????????????????? | | !!! # ""????????????????????????????????????? | | !!! # """???????????????????????????????????? | | ! # """ """???????????????????????????????? | | ########## ######????????????????????????? | | #### ########??????????????????????? | | ########+############?###??????????????????? | | """" ######## ########## ? #??????????????????? | | """" ######## #### ]### ? #??????????????????? | | """" # ### #### " gg??????????????????? | | """" # ### #### = ### g#??????????????????? | | # # ###!#### ???????????????????? | | """" + # ###=####?? u#???????????????????? | | """" # + T =*=%=###? #???????????????????? | | """" # # ###!!# ## p#???????????????????? | | """" # # #=#!= ## #####???????????????? | | =# ### ###!#=$ ##!%=#####???????????????? | | ###+### ### ###=%$! ## ####???????????????? | | ### ########## ### =%%!!%@ ####???????????????? | | ### ########## # *%! %;%h" ####???????????????? | | ## ######### ## ="%*h#h ####???????????????? | | ! ### "" o# h ####???????????????? | | ## ############# """=### ######???????????????? | | ################## ### ######???????????????? | | ########################### # ???????????????? | | #########################"" + ????????????????? | | #########?????###########"T ?????????????????????? | | ??????????????############# ?????????????????????? | | ?????????????????????????????????????????????????? | | ?????????????????????????????????????????????????? | | ?????????????????????????????????????????????????? | | ?????????????????????????????????????????????????? | | ?????????????????????????????????????????????????? | | ?????????????????????????????????????????????????? | | ?????????????????????????????????????????????????? | | ?????????????????????????????????????????????????? | | ?????????????????????????????????????????????????? | | ?????????????????????????????????????????????????? | | ?????????????????????????????????????????????????? | | ?????????????????????????????????????????????????? | | ?????????????????????????????????????????????????? | | ?????????????????????????????????????????????????? | | ?????????????????????????????????????????????????? | +----------------------------------------------------+ Best States ------------- Heat Dissipation 69 Energy Generation 51 Energy Capacity 580 Matter Stores 300 Matter Capacity 300 Sight Range 21 Robot Scan Range 18 Terrain Scan Range 20 Terrain Scan Density 1210 Jamming Range 14 Cloak Strength 3 Power Amplification 30 Armor Coverage 800 Resistance: KI 30 Weapon Shielding 33 Point Defense Rating 80 Melee Speed Boost 20 Phase Shifting 20 Evasion (%) 89 Melee Accuracy 16 Core Analysis 6 Armor Integrity Analysis 50 Recoil Reduction 2 Force Boost 30 Item Schematics ----------------- Enh. Multireflex Exoskeleton | -2/Testing | Archive Adv. Matter Compressor | -2/Testing | Archive Adv. KE Penetrator | -2/Testing | Archive Robot Schematics ------------------ R-10 Processor | -2/Testing | Archive Fabricated ------------ Nothing Repaired ---------- Cld. Gravmag System | 1% | -2/Testing Lrn. Sensor Array | 11% | -2/Testing Studied --------- None Alien Tech Used ----------------- Dimensional Node Initializer Integrated Dissipator Phase Redirector Subatomic Replicator Phase Armor Core Reset Matrix Transdimensional Reconstructor Achievements -------------- Alien Roots Ambidextrous Deadly Force Infodabbler Into The Breach Protector Whoosh! Challenges ------------ None Game ------ Seed PhasingLayeredMapper Manual? 0 Play Time 03:26:52 Cumulative 55.0 hours Start 2026.07.14 @ 11:26:07 End 2026.07.14 @ 22:11:52 Sessions 9 Manual Loads 0 Difficulty Rogue Special Mode None Game No. 59 Rogue 59 Adventurer 0 Explorer 0 Win Type - Total 1 Types 1/0/0/0/0/0/0/0/0/0 Lore% 49 Gallery% 39 Achievement% 36 Wizard Run 0 Options --------- Layout 1 ASCII 0 Keyboard 1 Movement Numpad Keybinds 1 Fullscreen 2 Font 24/Smallcaps Map View 50x40 Zoom Use 0% Tactical HUD 1 Map Filters NONE Filters NONE Steam 1 RUN: 44f11841-15fe-4e99-8b63-8636d0109596